bitfinex/quotes_BTCUSD_20250118
["timestamp","ask_amount","ask_price","bid_price","bid_amount"]
[1737198264067,0.29989168,103070.0,103060.0,8.70621733]
[1737198264499,0.20065087,103070.0,103060.0,8.70621733]
[1737198264711,0.09217134,103070.0,103060.0,8.70621733]
[1737198265139,0.00508932,103070.0,103060.0,8.70621733]
[1737198265744,0.11356885,103070.0,103060.0,8.70621733]
[1737198265954,0.11454154,103070.0,103060.0,8.70621733]
[1737198267953,0.11356885,103070.0,103060.0,8.70621733]
[1737198268850,0.00508932,103070.0,103060.0,8.70621733]
[1737198269054,0.11356885,103070.0,103060.0,8.70621733]
[1737198269299,0.00508932,103070.0,103060.0,8.70621733]
[1737198270705,0.0004278,103070.0,103060.0,8.70621733]
[1737198272727,0.0004278,103070.0,103060.0,8.72921733]
[1737198273358,0.0004278,103070.0,103060.0,8.87921733]
[1737198273562,0.0004277,103080.0,103070.0,0.24640371]
[1737198276372,0.0004277,103080.0,103070.0,0.49564452]
[1737198278515,0.0004277,103080.0,103070.0,0.50228452]
[1737198279311,0.0004277,103080.0,103070.0,0.49564452]
[1737198279524,0.0004277,103080.0,103070.0,0.50228452]
[1737198280404,0.0004277,103080.0,103070.0,0.49564452]
[1737198280610,0.0004277,103080.0,103070.0,0.40304371]
[1737198280889,0.10890723,103080.0,103070.0,0.3013]
[1737198281095,0.43570723,103080.0,103070.0,0.22340371]
[1737198282337,0.53271923,103080.0,103070.0,0.22340371]
[1737198282547,0.53271923,103080.0,103070.0,0.1283]
[1737198282729,0.43570723,103080.0,103070.0,0.22340371]
[1737198285499,0.3272277,103080.0,103070.0,0.22340371]
[1737198286569,0.43570723,103080.0,103070.0,0.22340371]
[1737198287072,0.0457277,103080.0,103070.0,0.22340371]
[1737198291462,0.15420723,103080.0,103070.0,0.2243023]
[1737198294444,0.0457277,103080.0,103070.0,0.2243023]
[1737198296069,0.15420723,103080.0,103070.0,0.2243023]
[1737198296313,0.0457277,103080.0,103070.0,0.2243023]
[1737198300967,0.25121923,103080.0,103070.0,0.2243023]
[1737198301173,0.25121923,103080.0,103070.0,0.00089859]
[1737198301174,0.45893957,103080.0,103070.0,0.00089859]
[1737198301390,0.45893957,103080.0,103070.0,0.0960023]
[1737198301595,0.35046004,103080.0,103070.0,0.0960023]
[1737198301810,0.35046004,103080.0,103070.0,0.00089859]
[1737198302019,0.45893957,103080.0,103070.0,0.00089859]
[1737198302433,0.86128038,103080.0,103070.0,0.00089859]
[1737198302648,0.91598038,103080.0,103070.0,0.00089859]
[1737198302863,0.81598038,103080.0,103070.0,0.00089859]
[1737198303279,0.82087667,103080.0,103070.0,0.00089859]
[1737198304182,0.81598038,103080.0,103070.0,0.00089859]
[1737198304403,0.62197635,103070.0,103060.0,8.47971362]
[1737198304617,0.81556168,103070.0,103060.0,8.44678362]
[1737198305286,0.81556168,103070.0,103060.0,8.41561921]
[1737198305497,0.81556168,103070.0,103060.0,8.15847143]
[1737198305710,0.68546168,103070.0,103060.0,7.75805338]
[1737198305921,0.68546168,103070.0,103060.0,7.64335156]
[1737198306353,0.90316673,103070.0,103060.0,7.64335156]
[1737198307672,0.58622087,103070.0,103060.0,7.64335156]
[1737198308327,0.57851861,103070.0,103060.0,7.64335156]
[1737198308768,0.75214275,103070.0,103060.0,7.64335156]
[1737198309217,0.77514275,103070.0,103060.0,7.64335156]
[1737198309855,0.85703904,103070.0,103060.0,7.64335156]
[1737198310089,1.11085371,103070.0,103060.0,7.64335156]
[1737198310289,1.10161499,103070.0,103060.0,7.64335156]
[1737198310492,1.21009452,103070.0,103060.0,7.64335156]
[1737198310699,1.22155823,103070.0,103060.0,7.64335156]
[1737198311124,1.09134047,103070.0,103060.0,7.64335156]
[1737198311929,1.09798047,103070.0,103060.0,7.64335156]
[1737198312519,0.92435633,103070.0,103060.0,7.64335156]
[1737198313344,0.82511552,103070.0,103060.0,7.64335156]
[1737198315385,0.69492502,103070.0,103060.0,7.64335156]
[1737198316613,0.82511552,103070.0,103060.0,7.64335156]
[1737198318261,1.21572383,103070.0,103060.0,7.64335156]
[1737198319239,1.12895742,103070.0,103060.0,7.64335156]
[1737198319483,1.22819823,103070.0,103060.0,7.64335156]
[1737198321958,1.31479296,103070.0,103060.0,7.64335156]
[1737198322360,1.31479296,103070.0,103060.0,7.6261827]
[1737198322581,1.31479296,103070.0,103060.0,7.58055879]
[1737198322973,1.22819823,103070.0,103060.0,7.58055879]
[1737198323179,1.22819823,103070.0,103060.0,7.13290129]
[1737198323383,1.22819823,103070.0,103060.0,6.97834369]
[1737198323583,1.22819823,103070.0,103060.0,6.89238719]
[1737198323847,1.22819823,103070.0,103060.0,6.79130783]
[1737198324030,1.22819823,103070.0,103060.0,6.41959181]
[1737198324286,1.22819823,103070.0,103060.0,6.25000781]
[1737198324498,1.09800773,103070.0,103060.0,5.27384527]
[1737198324708,1.09800773,103070.0,103060.0,5.19810527]
[1737198324917,1.09840559,103070.0,103060.0,5.19810527]
[1737198325119,1.09840559,103070.0,103060.0,5.11048127]
[1737198325324,1.09840559,103070.0,103060.0,5.09107527]
[1737198325944,0.92478145,103070.0,103060.0,5.09107527]
[1737198326388,0.92520935,103070.0,103060.0,4.99404527]
[1737198327016,0.92520935,103070.0,103060.0,4.92647335]
[1737198327225,0.70822518,103070.0,103060.0,4.86825535]
[1737198327441,0.70822518,103070.0,103060.0,4.71337105]
[1737198328329,0.39202531,103070.0,103060.0,4.61634105]
[1737198328540,0.60898437,103070.0,103060.0,4.61634105]
[1737198328759,0.58598437,103070.0,103060.0,4.61634105]
[1737198329193,0.43598437,103070.0,103060.0,4.61634105]
[1737198329622,0.88895945,103070.0,103060.0,4.61634105]
[1737198329835,1.01120026,103070.0,103060.0,4.61634105]
[1737198330053,1.01120026,103070.0,103060.0,4.57752905]
[1737198330299,1.01120026,103070.0,103060.0,4.55812305]
[1737198330507,1.01120026,103070.0,103060.0,4.48049905]
[1737198331329,0.92463513,103070.0,103060.0,4.48049905]
[1737198331728,0.92830751,103070.0,103060.0,4.48049905]
[1737198335098,1.10143613,103070.0,103060.0,4.48049905]
[1737198335291,1.10143613,103070.0,103060.0,4.46109305]
[1737198335680,1.10143613,103070.0,103060.0,4.42228105]
[1737198336471,1.01487264,103070.0,103060.0,4.28740395]
[1737198336694,1.01487264,103070.0,103060.0,4.25254]
[1737198336894,1.01487264,103070.0,103060.0,4.22077819]
[1737198337104,1.01487264,103070.0,103060.0,4.12374819]
[1737198337308,1.01487264,103070.0,103060.0,4.07345788]
[1737198337978,0.92830833,103070.0,103060.0,4.07345788]
[1737198338215,0.92830833,103070.0,103060.0,4.03464588]
[1737198338328,1.03040833,103070.0,103060.0,3.94553788]
[1737198338529,0.92830833,103070.0,103060.0,3.94067421]
[1737198339032,0.92830833,103070.0,103060.0,3.83606447]
[1737198339432,0.92830833,103070.0,103060.0,3.34418921]
[1737198339665,0.71189756,103070.0,103060.0,2.57504049]
[1737198340058,0.71189756,103070.0,103060.0,2.27307323]
[1737198340267,0.71189756,103070.0,103060.0,2.17099007]
[1737198340467,0.71189756,103070.0,103060.0,2.03736875]
[1737198340596,0.71189756,103070.0,103060.0,2.02736875]
[1737198341147,0.71189756,103070.0,103060.0,1.99726275]
[1737198341290,0.97327106,103070.0,103060.0,1.93904475]
[1737198341485,0.97327106,103070.0,103060.0,1.91963875]
[1737198341701,0.97327106,103070.0,103060.0,1.88415875]
[1737198342167,0.97327106,103070.0,103060.0,1.86475275]
[1737198342357,0.97327106,103070.0,103060.0,1.79769478]
[1737198342519,0.97327106,103070.0,103060.0,1.77828878]
[1737198342952,0.97327106,103070.0,103060.0,1.76838211]
[1737198343151,0.97327106,103070.0,103060.0,0.48149396]
[1737198343355,0.97327106,103070.0,103060.0,0.37907502]
[1737198343733,0.97327106,103070.0,103060.0,0.12521167]
[1737198344050,0.27004,103050.0,103040.0,0.00088276]
[1737198344256,0.58383454,103050.0,103040.0,0.00088276]
[1737198344567,0.59649487,103050.0,103040.0,0.00088276]
[1737198344788,0.58357009,103050.0,103040.0,0.07828276]
[1737198344989,0.57693009,103050.0,103040.0,0.12648276]
[1737198345164,0.67349487,103050.0,103040.0,0.12648276]
[1737198345389,0.40837534,103050.0,103040.0,0.12648276]
[1737198345914,0.30837534,103050.0,103040.0,0.12648276]
[1737198346315,0.69964017,103050.0,103040.0,0.12648276]
[1737198346817,0.59116064,103050.0,103040.0,0.1591077]
[1737198347279,0.59116064,103050.0,103040.0,0.12648276]
[1737198347695,0.59116064,103050.0,103040.0,0.1591077]
[1737198348097,0.28684209,103050.0,103040.0,0.12648276]
[1737198350369,0.41726151,103050.0,103040.0,0.12648276]
[1737198351920,0.28684209,103050.0,103040.0,0.12648276]
[1737198355061,0.59115699,103050.0,103040.0,0.12648276]
[1737198355950,0.49411699,103050.0,103040.0,0.12648276]
[1737198356170,0.49411699,103050.0,103040.0,0.22353176]
[1737198357311,0.59115699,103050.0,103040.0,0.22353176]
[1737198357493,0.49411699,103050.0,103040.0,0.22353176]
[1737198357694,0.10285581,103050.0,103040.0,0.22353176]
[1737198358108,0.39215977,103060.0,103050.0,0.19214371]
[1737198358339,0.49140058,103060.0,103050.0,0.31774371]
[1737198359327,0.58843058,103060.0,103050.0,0.31774371]
[1737198359478,0.58843058,103060.0,103050.0,0.22070371]
[1737198359688,0.58843058,103060.0,103050.0,0.1256]
[1737198360111,0.1971694,103060.0,103050.0,0.22264]
[1737198360466,0.1971694,103060.0,103050.0,0.1256]
[1737198360685,0.1971694,103060.0,103050.0,0.22264]
[1737198360862,0.1001394,103060.0,103050.0,0.31774371]
[1737198361066,0.1971694,103060.0,103050.0,0.31774371]
[1737198361482,0.1001394,103060.0,103050.0,0.31774371]
[1737198361708,0.19723457,103060.0,103050.0,0.31774371]
[1737198362329,0.19723457,103060.0,103050.0,0.1256]
[1737198363388,0.19723457,103060.0,103050.0,0.22264]
[1737198364003,0.19723457,103060.0,103050.0,0.31774371]
[1737198364489,0.10020457,103060.0,103050.0,0.31774371]
[1737198364764,0.00096376,103060.0,103050.0,0.31774371]
[1737198365797,0.0043721,103060.0,103050.0,0.31774371]
[1737198369266,0.0043721,103060.0,103050.0,0.33703311]
[1737198370107,0.0043721,103060.0,103050.0,0.46851264]
[1737198370333,0.00087612,103070.0,103060.0,0.31823371]
[1737198371351,0.00087612,103070.0,103060.0,0.31079371]
[1737198374688,0.00087612,103070.0,103060.0,0.1261]
[1737198374689,0.30561746,103070.0,103060.0,0.1261]
[1737198375233,0.19713793,103070.0,103060.0,0.22120371]
[1737198375442,0.19713793,103070.0,103060.0,0.31823371]
[1737198375443,0.10011693,103070.0,103060.0,0.31823371]
[1737198375851,0.00087612,103070.0,103060.0,0.31823371]
[1737198377819,0.0065975,103070.0,103060.0,0.31823371]
[1737198383360,0.0065975,103070.0,103060.0,0.33115708]
[1737198383566,0.1036185,103070.0,103060.0,0.33115708]
[1737198384067,0.0065975,103070.0,103060.0,0.33115708]
[1737198385665,0.0065975,103070.0,103060.0,0.31913209]
[1737198385830,0.20285931,103070.0,103060.0,0.22210209]
[1737198387046,0.31231153,103070.0,103060.0,0.12699838]
[1737198387255,0.41057965,103070.0,103060.0,0.07829838]
[1737198387467,0.46133884,103070.0,103060.0,0.00089838]
[1737198387691,0.41133884,103070.0,103060.0,0.00089838]
[1737198387899,0.56573884,103070.0,103060.0,0.00089838]
[1737198388115,0.46133884,103070.0,103060.0,0.00089838]
[1737198389161,0.47451117,103070.0,103060.0,0.00089838]
[1737198389364,1.06501316,103070.0,103060.0,0.00089838]
[1737198390523,1.07430945,103070.0,103060.0,0.00089838]
[1737198390725,1.1916788,103070.0,103060.0,0.00089838]
[1737198390934,1.29526204,103070.0,103060.0,0.00089838]
[1737198391109,1.29526204,103070.0,103060.0,3.8e-07]
[1737198391317,1.29886204,103070.0,103060.0,3.8e-07]
[1737198392078,0.95107036,103070.0,103060.0,3.8e-07]
[1737198393212,0.73975002,103070.0,103060.0,3.8e-07]
[1737198393450,0.77771254,103070.0,103060.0,3.8e-07]
[1737198393821,0.77281625,103070.0,103060.0,3.8e-07]
[1737198394359,0.88129578,103070.0,103060.0,3.8e-07]
[1737198394576,0.5873907,103070.0,103060.0,3.8e-07]
[1737198394778,0.68663151,103070.0,103060.0,3.8e-07]
[1737198395532,1.42969199,103070.0,103060.0,3.8e-07]
[1737198395767,1.43329199,103070.0,103060.0,3.8e-07]
[1737198398062,0.25143,103060.0,103050.0,9.7e-07]
[1737198398271,0.60133325,103060.0,103050.0,9.7e-07]
[1737198398661,0.70057406,103060.0,103050.0,9.7e-07]
[1737198399020,0.96122405,103060.0,103050.0,9.7e-07]
[1737198399421,0.10144,103050.0,103040.0,7.3e-07]
[1737198399628,0.57521256,103050.0,103040.0,7.3e-07]
[1737198399806,0.58131172,103050.0,103040.0,7.3e-07]
[1737198400025,0.68055253,103050.0,103040.0,7.3e-07]
[1737198400603,0.247049,103040.0,103030.0,0.00089607]
[1737198400806,0.57124887,103040.0,103030.0,0.00089607]
[1737198401194,0.57832072,103040.0,103030.0,0.00089607]
[1737198403217,0.83875072,103040.0,103030.0,0.00089607]
[1737198403430,0.93799153,103040.0,103030.0,0.00089607]
[1737198403607,0.94807591,103040.0,103030.0,0.00089607]
[1737198404804,0.9043903,103040.0,103030.0,0.00089607]
[1737198405840,1.07771739,103040.0,103030.0,0.00089607]
[1737198406172,1.07771739,103040.0,103030.0,7e-08]
[1737198406391,0.98370861,103040.0,103030.0,7e-08]
[1737198407047,1.11365941,103040.0,103030.0,7e-08]
[1737198407438,1.12025941,103040.0,103030.0,7e-08]
[1737198408056,1.20684857,103040.0,103030.0,7e-08]
[1737198409046,1.21044857,103040.0,103030.0,7e-08]
[1737198409243,1.21044857,103040.0,103010.0,0.00089628]
[1737198409244,0.247068,103020.0,103010.0,0.00089628]
[1737198409471,0.56326787,103020.0,103010.0,0.00089628]
[1737198409681,0.5702384,103020.0,103010.0,0.00089628]
[1737198410585,0.101477,103010.0,103000.0,2.8e-07]
[1737198410756,0.57524956,103010.0,103000.0,2.8e-07]
[1737198410940,0.68044437,103010.0,103000.0,2.8e-07]
[1737198412460,0.89698433,103010.0,103000.0,2.8e-07]
[1737198413429,0.76703353,103010.0,103000.0,2.8e-07]
[1737198413631,0.54831319,103010.0,103000.0,0.08280028]
[1737198413861,0.65679272,103010.0,103000.0,0.08280028]
[1737198414736,0.57020356,103010.0,103000.0,0.08280028]
[1737198414916,0.57680356,103010.0,103000.0,0.08280028]
[1737198415120,0.67604437,103010.0,103000.0,0.08280028]
[1737198415819,0.67604437,103010.0,103000.0,2.8e-07]
[1737198416978,0.68954945,103010.0,103000.0,2.8e-07]
[1737198419071,0.69962006,103010.0,103000.0,2.8e-07]
[1737198420415,0.69962006,103010.0,103000.0,0.00042818]
[1737198423887,0.69962006,103010.0,103000.0,1.8e-07]
[1737198429775,0.78620922,103010.0,103000.0,1.8e-07]
[1737198432166,0.15489629,103000.0,102990.0,0.08365877]
[1737198432379,0.76360037,103000.0,102990.0,7.7e-07]
[1737198432587,0.76813212,103000.0,102990.0,7.7e-07]
[1737198433008,0.76813212,103000.0,102980.0,8.7e-07]
[1737198433009,0.097096,102990.0,102980.0,8.7e-07]
[1737198433194,0.45481634,102990.0,102980.0,8.7e-07]
[1737198433392,0.56877634,102990.0,102980.0,8.7e-07]
[1737198433594,0.66801715,102990.0,102980.0,8.7e-07]
[1737198434225,0.67808473,102990.0,102980.0,8.7e-07]
[1737198434834,0.89462469,102990.0,102980.0,8.7e-07]
[1737198436458,0.247106,102980.0,102970.0,9.7e-07]
[1737198436661,0.25201129,102970.0,102960.0,0.08269691]
[1737198436862,0.46633163,102970.0,102960.0,0.08269691]
[1737198437362,0.47171796,102970.0,102960.0,0.08269691]
[1737198437679,0.47171796,102970.0,102960.0,0.08320182]
[1737198437874,0.57095877,102970.0,102960.0,0.08320182]
[1737198438559,0.47171796,102970.0,102960.0,0.08320182]
[1737198441425,0.48416415,102970.0,102960.0,0.08320182]
[1737198441657,0.57075331,102970.0,102960.0,0.08320182]
[1737198442132,0.57075331,102970.0,102960.0,0.13030182]
[1737198442133,0.77923284,102970.0,102960.0,0.13030182]
[1737198443918,0.55925702,102970.0,102960.0,0.13030182]
[1737198444084,0.40925702,102970.0,102960.0,0.13030182]
[1737198444292,0.53920782,102970.0,102960.0,0.13030182]
[1737198444699,0.68920782,102970.0,102960.0,0.13030182]
[1737198445669,0.47266786,102970.0,102960.0,0.13030182]
[1737198446979,0.46022167,102970.0,102960.0,0.13030182]
[1737198452606,0.46156867,102970.0,102960.0,0.13030182]
[1737198452982,0.54815783,102970.0,102960.0,0.13030182]
[1737198454516,0.67810863,102970.0,102960.0,0.13030182]
[1737198454721,0.67900785,102970.0,102960.0,0.13030182]
[1737198455167,0.88672819,102970.0,102960.0,0.13030182]
[1737198455299,0.98672819,102970.0,102960.0,0.13030182]
[1737198455504,0.90013903,102970.0,102960.0,0.13030182]
[1737198455855,1.29021051,102970.0,102960.0,0.13030182]
[1737198456927,1.32452331,102970.0,102960.0,0.13030182]
[1737198457134,1.2252825,102970.0,102960.0,0.13030182]
[1737198458391,0.93137742,102970.0,102960.0,0.13030182]
[1737198460275,0.83627371,102970.0,102960.0,9.1e-07]
[1737198460730,0.84629465,102970.0,102960.0,9.1e-07]
[1737198462140,1.00484934,102970.0,102960.0,9.1e-07]
[1737198462359,1.10409015,102970.0,102960.0,9.1e-07]
[1737198462853,0.1,102960.0,102950.0,0.00085782]
[1737198463023,0.42089756,102960.0,102950.0,0.00100918]
[1737198463242,0.42661523,102960.0,102950.0,0.00100918]
[1737198464729,0.68797362,102960.0,102950.0,0.00100918]
[1737198464934,0.78721443,102960.0,102950.0,0.00100918]
[1737198467293,0.79888984,102960.0,102950.0,0.00100918]
[1737198468131,0.94888984,102960.0,102950.0,0.00100918]
[1737198468362,0.10203029,102950.0,102940.0,0.12894981]
[1737198468568,0.55996413,102950.0,102940.0,0.04710128]
[1737198468740,0.56564057,102950.0,102940.0,0.04710128]
[1737198469373,0.56564057,102950.0,102940.0,4.7e-07]
[1737198469584,0.78333775,102950.0,102940.0,4.7e-07]
[1737198471551,0.82699896,102950.0,102940.0,4.7e-07]
[1737198471793,0.83623768,102950.0,102940.0,4.7e-07]
[1737198473280,0.84283768,102950.0,102940.0,4.7e-07]
[1737198474243,1.28980191,102950.0,102940.0,4.7e-07]
[1737198475890,0.5915072,102950.0,102940.0,4.7e-07]
[1737198477431,0.85253138,102950.0,102940.0,4.7e-07]
[1737198477617,0.95177219,102950.0,102940.0,4.7e-07]
[1737198478569,0.94593138,102950.0,102940.0,0.13030047]
[1737198479213,0.94593138,102950.0,102940.0,0.13072877]
[1737198479868,0.90241697,102950.0,102940.0,0.13072877]
[1737198480995,0.80241697,102950.0,102940.0,0.13072877]
[1737198481138,0.90241697,102950.0,102940.0,0.13072877]
[1737198481340,0.80241697,102950.0,102940.0,0.13072877]
[1737198481588,0.90241697,102950.0,102940.0,0.13072877]
[1737198481841,0.53904115,102950.0,102940.0,0.13072877]
[1737198482057,0.63904115,102950.0,102940.0,0.13072877]
[1737198482178,0.78904115,102950.0,102940.0,0.13072877]
[1737198482380,0.89752068,102950.0,102940.0,0.13072877]
[1737198483247,0.78904115,102950.0,102940.0,0.13072877]
[1737198483476,0.96303563,102950.0,102940.0,0.13072877]
[1737198485541,1.12313729,102950.0,102940.0,0.13072877]
[1737198487429,0.96303563,102950.0,102940.0,0.13072877]
[1737198490420,0.96963563,102950.0,102940.0,0.13072877]
[1737198492059,0.96393506,102950.0,102940.0,0.13072877]
[1737198493858,0.86393506,102950.0,102940.0,0.13072877]
[1737198495524,0.99450145,102950.0,102940.0,0.13072877]
[1737198496669,1.08156298,102950.0,102940.0,0.13072877]
[1737198499694,0.99450145,102950.0,102940.0,0.13072877]
[1737198499916,1.09374226,102950.0,102940.0,0.13072877]
[1737198500532,0.99450145,102950.0,102940.0,0.13072877]
[1737198502321,0.86393506,102950.0,102940.0,0.13072877]
[1737198504237,0.71393506,102950.0,102940.0,0.13072877]
[1737198504451,0.70390715,102950.0,102940.0,0.22583248]
[1737198505523,0.85390715,102950.0,102940.0,0.22583248]
[1737198505950,0.98475351,102950.0,102940.0,0.22583248]
[1737198507635,0.67991267,102950.0,102940.0,0.22583248]
[1737198510391,0.85437712,102950.0,102940.0,0.22583248]
[1737198511561,0.98521681,102950.0,102940.0,0.22583248]
[1737198513008,1.07243501,102950.0,102940.0,0.22583248]
[1737198513213,0.92243501,102950.0,102940.0,0.22583248]
[1737198514447,0.09476676,102950.0,102940.0,0.34597548]
[1737198515219,0.30038029,102950.0,102940.0,0.34597548]
[1737198515785,0.30038029,102950.0,102940.0,0.24883248]
[1737198515923,0.21316209,102950.0,102940.0,0.24883248]
[1737198516266,0.21316209,102950.0,102940.0,0.22583248]
[1737198516853,0.3124029,102950.0,102940.0,0.22583248]
[1737198517034,0.3124029,102950.0,102940.0,0.13072877]
[1737198517227,0.4624029,102950.0,102940.0,0.22583248]
[1737198518255,0.68046079,102950.0,102940.0,0.22583248]
[1737198521885,0.69195741,102950.0,102940.0,0.22583248]
[1737198525907,0.86642186,102950.0,102940.0,0.22583248]
[1737198526985,0.86642186,102950.0,102940.0,0.13072877]
[1737198527246,0.86642186,102950.0,102940.0,0.22583248]
[1737198527479,0.86642186,102950.0,102940.0,0.13072877]
[1737198527702,0.97490139,102950.0,102940.0,0.00042877]
[1737198527934,1.15660139,102950.0,102940.0,0.00042877]
[1737198529593,1.02510323,102950.0,102940.0,0.00042877]
[1737198541211,0.15,102940.0,102920.0,0.07581925]
[1737198541396,0.41432556,102930.0,102920.0,0.07597076]
[1737198541597,0.5705927,102930.0,102920.0,0.07597076]
[1737198542890,0.78859665,102930.0,102920.0,0.07597076]
[1737198543816,0.68011712,102930.0,102920.0,0.07597076]
[1737198544437,0.78859665,102930.0,102920.0,0.20407076]
[1737198544645,0.68011712,102930.0,102920.0,0.20407076]
[1737198545475,0.57163759,102930.0,102920.0,0.20407076]
[1737198545699,0.65779428,102930.0,102920.0,0.20407076]
[1737198546978,0.5705927,102930.0,102920.0,0.20407076]
[1737198548447,0.65779428,102930.0,102920.0,0.20407076]
[1737198548825,0.66899981,102930.0,102920.0,0.20407076]
[1737198550295,0.66899981,102930.0,102920.0,0.20449876]
[1737198550435,0.66989862,102930.0,102920.0,0.20449876]
[1737198551936,0.70874862,102930.0,102920.0,0.20449876]
[1737198552504,0.83955099,102930.0,102920.0,0.20449876]
[1737198554028,0.70874862,102930.0,102920.0,0.20449876]
[1737198554183,0.60026909,102930.0,102920.0,0.20449876]
[1737198557439,0.70874862,102930.0,102920.0,0.20449876]
[1737198559157,0.49178956,102930.0,102920.0,0.20449876]
[1737198559349,0.70874862,102930.0,102920.0,0.20449876]
[1737198559554,0.49178956,102930.0,102920.0,0.20449876]
[1737198559759,0.70874862,102930.0,102920.0,0.20449876]
[1737198559968,0.80798943,102930.0,102920.0,0.00057951]
[1737198560764,0.70874862,102930.0,102920.0,0.00057951]
[1737198561573,1.23195812,102930.0,102920.0,0.00057951]
[1737198562322,1.23235652,102930.0,102920.0,0.00057951]
[1737198562777,1.23235652,102930.0,102920.0,0.07639876]
[1737198562998,1.14515494,102930.0,102920.0,0.07639876]
[1737198567981,1.01435257,102930.0,102920.0,0.07639876]
[1737198569505,0.90587304,102930.0,102920.0,0.07639876]
[1737198569873,0.90587304,102930.0,102920.0,0.15239876]
[1737198570027,1.01435257,102930.0,102920.0,0.15239876]
[1737198570656,1.23228019,102930.0,102920.0,0.15239876]
[1737198571030,1.12380066,102930.0,102920.0,0.15239876]
[1737198571224,1.12380066,102930.0,102920.0,0.20199876]
[1737198571648,1.23228019,102930.0,102920.0,0.20199876]
[1737198571924,1.11259513,102930.0,102920.0,0.20199876]
[1737198572126,0.92374513,102930.0,102920.0,0.20600615]
[1737198572331,0.92374513,102930.0,102920.0,0.20503464]
[1737198572964,0.40058143,102930.0,102920.0,0.20503464]
[1737198573624,0.40058143,102930.0,102920.0,0.20600614]
[1737198573835,0.40058143,102930.0,102920.0,0.20297026]
[1737198574052,0.40058143,102930.0,102920.0,0.20199876]
[1737198574370,0.31341038,102930.0,102920.0,0.20297026]
[1737198574786,0.31341038,102930.0,102920.0,0.20199876]
[1737198577083,0.31341038,102930.0,102920.0,0.20297026]
[1737198577728,0.10777785,102930.0,102920.0,0.30013226]
[1737198577944,0.00853704,102930.0,102920.0,0.29916076]
[1737198578152,0.00853704,102930.0,102920.0,0.32216076]
[1737198578973,0.00853704,102930.0,102920.0,0.42216076]
[1737198580612,0.00853704,102930.0,102920.0,0.6086664]
[1737198581337,0.00853704,102930.0,102920.0,1.06038754]
[1737198582527,0.00853704,102930.0,102920.0,1.15962835]
[1737198583920,0.00853704,102930.0,102920.0,1.46239809]
[1737198584128,0.00853704,102930.0,102920.0,1.61239809]
[1737198584753,0.00853704,102930.0,102920.0,1.62299447]
[1737198586138,0.00853704,102930.0,102920.0,1.731474]
[1737198586387,0.00853704,102930.0,102920.0,1.60227741]
[1737198587679,0.00853704,102930.0,102920.0,1.81854151]
[1737198588652,0.00853704,102930.0,102920.0,1.60227741]
[1737198592708,0.00853704,102930.0,102920.0,1.49379788]
[1737198592859,0.00853704,102930.0,102920.0,1.3207866]
[1737198594628,0.00853704,102930.0,102920.0,1.42926613]
[1737198595075,0.00853704,102930.0,102920.0,0.97754499]
[1737198595716,0.00853704,102930.0,102920.0,1.00935712]
[1737198596750,0.00853704,102930.0,102920.0,0.94591581]
[1737198596914,0.00853704,102930.0,102920.0,0.91410368]
[1737198599219,0.00089943,102960.0,102950.0,0.60659145]
[1737198599401,0.32769922,102970.0,102960.0,0.13308245]
[1737198601791,0.32769922,102970.0,102960.0,0.6075535]
[1737198602027,0.32769922,102970.0,102960.0,0.60658245]
[1737198603702,0.32769922,102970.0,102960.0,0.62636291]
[1737198604124,0.43617875,102970.0,102960.0,0.42636291]
[1737198604304,0.10937875,102970.0,102960.0,0.28990546]
[1737198604708,0.10937875,102970.0,102960.0,0.30573791]
[1737198604911,0.10937875,102970.0,102960.0,0.28990546]
[1737198605108,0.10937875,102970.0,102960.0,0.40286291]
[1737198605309,0.20649375,102970.0,102960.0,0.16978046]
[1737198605736,0.20649375,102970.0,102960.0,0.18273791]
[1737198605947,0.30573456,102970.0,102960.0,0.03273791]
[1737198606848,0.31143289,102970.0,102960.0,0.03273791]
[1737198607385,0.097143,102940.0,102930.0,0.00086286]
[1737198607561,0.64214657,102930.0,102910.0,0.61581887]
[1737198607779,0.20564153,102920.0,102910.0,0.61597046]
[1737198607969,0.21128884,102920.0,102910.0,0.61597046]
[1737198608153,0.11412684,102920.0,102910.0,0.61597046]
[1737198608375,0.21128884,102920.0,102910.0,0.61597046]
[1737198608552,0.21128884,102920.0,102910.0,0.00986911]
[1737198609623,0.10280931,102920.0,102910.0,0.00986911]
[1737198610181,0.10280931,102920.0,102910.0,0.01084067]
[1737198610538,0.10280931,102920.0,102910.0,0.03384067]
[1737198610747,0.00564731,102920.0,102910.0,0.05366875]
[1737198612238,0.00564731,102920.0,102910.0,0.15366875]
[1737198612483,0.00564731,102920.0,102910.0,0.30366875]
[1737198612676,0.00564731,102920.0,102910.0,0.40269719]
[1737198613264,0.33244731,102920.0,102910.0,0.40269719]
[1737198614133,0.33244731,102920.0,102910.0,0.30269719]
[1737198614376,0.53808884,102920.0,102910.0,0.05269719]
[1737198614575,0.53808884,102920.0,102910.0,0.02969719]
[1737198614817,0.61938884,102920.0,102910.0,0.02969719]
[1737198615375,0.61938884,102920.0,102910.0,0.00986911]
[1737198617183,0.41827146,102910.0,102900.0,0.01966047]
[1737198617361,0.53218405,102910.0,102900.0,0.01966047]
[1737198625973,0.53218405,102910.0,102880.0,0.43517736]
[1737198626122,0.10847953,102900.0,102880.0,0.53441817]
[1737198626319,0.11387377,102900.0,102880.0,0.53441817]
[1737198626669,0.21105477,102900.0,102880.0,0.53441817]
[1737198627110,0.40541777,102900.0,102880.0,0.43721917]
[1737198627876,0.20567053,102890.0,102880.0,0.13797836]
[1737198628083,0.20567053,102890.0,102880.0,0.0703141]
[1737198628285,0.85891557,102890.0,102880.0,0.0210141]
[1737198628687,0.85891557,102890.0,102880.0,0.00192975]
[1737198630753,0.95815638,102890.0,102880.0,0.00192975]
[1737198631826,1.03525638,102890.0,102880.0,0.00192975]
[1737198632066,1.03525638,102890.0,102880.0,0.00235775]
[1737198632067,1.03376227,102890.0,102880.0,0.00235775]
[1737198632428,0.38586281,102890.0,102880.0,0.00235775]
[1737198632587,0.25744225,102880.0,102870.0,0.01960941]
[1737198632796,0.370321,102880.0,102870.0,0.01960941]
[1737198633794,0.370321,102880.0,102870.0,0.02011482]
[1737198634217,0.21007875,102880.0,102870.0,0.02011482]
[1737198637330,0.58067875,102880.0,102870.0,0.02011482]
[1737198638642,0.58067875,102880.0,102870.0,0.02315191]
[1737198643286,0.58067875,102880.0,102870.0,0.19986191]
[1737198643287,0.00439922,102880.0,102870.0,0.19986191]
[1737198643788,0.00439922,102880.0,102870.0,0.10265191]
[1737198644217,0.00439922,102880.0,102870.0,0.19986191]
[1737198644496,0.21007875,102880.0,102870.0,0.10265191]
[1737198645275,0.21007875,102880.0,102870.0,0.19986191]
[1737198646111,0.21007875,102880.0,102870.0,0.10265191]
[1737198646318,0.21007875,102880.0,102870.0,0.02315191]
[1737198648989,0.30931956,102880.0,102870.0,0.0039704]
[1737198649432,0.39001956,102880.0,102870.0,0.0039704]
[1737198649943,0.49849909,102880.0,102870.0,0.0039704]
[1737198651991,0.39001956,102880.0,102870.0,0.0039704]
[1737198654070,0.39171417,102880.0,102870.0,0.0039704]
[1737198654449,0.31101417,102880.0,102870.0,0.0039704]
[1737198654973,0.21177336,102880.0,102870.0,0.0039704]
[1737198655827,0.21267175,102880.0,102870.0,0.0039704]